bitfinex/quotes_ETHUSD_20250214
["timestamp","ask_amount","ask_price","bid_price","bid_amount"]
[1739560029289,0.06369425,2760.3,2760.2,8.057012]
[1739560029687,0.55,2760.9,2760.6,3.0]
[1739560029893,5.39,2761.0,2760.8,3.0]
[1739560030091,0.55,2760.9,2760.8,3.0]
[1739560030424,5.39,2761.0,2760.8,3.0]
[1739560031007,0.55,2760.9,2760.8,3.0]
[1739560032223,0.6118913,2760.9,2760.8,3.0]
[1739560034208,4.2338913,2760.9,2760.8,3.0]
[1739560035134,9.6238913,2760.9,2760.8,3.0]
[1739560035336,10.4396913,2760.9,2760.8,3.0]
[1739560036797,6.0018913,2760.9,2760.8,3.0]
[1739560038116,6.0018913,2760.9,2760.8,6.62213]
[1739560038312,5.4518913,2760.9,2760.8,11.01869439]
[1739560038622,5.4518913,2760.9,2760.8,7.39393]
[1739560038822,5.4518913,2760.9,2760.8,42.39393]
[1739560039002,6.0018913,2760.9,2760.8,42.39393]
[1739560039934,6.0018913,2760.9,2760.8,38.0]
[1739560040432,6.0018913,2760.9,2760.8,41.62213]
[1739560040932,6.0018913,2760.9,2760.8,38.0]
[1739560041100,9.6238913,2760.9,2760.8,38.0]
[1739560041310,9.6238913,2760.9,2760.8,35.0]
[1739560041762,3.62277,2760.4,2760.0,0.7988]
[1739560041975,0.55,2760.1,2759.7,7.24697]
[1739560042256,4.17305,2760.1,2760.0,35.0]
[1739560042878,0.55,2760.1,2760.0,38.0]
[1739560043046,0.55,2760.1,2760.0,35.0]
[1739560043419,0.55,2760.1,2760.0,38.0]
[1739560043637,4.17305,2760.1,2760.0,38.0]
[1739560043966,4.23244037,2760.1,2760.0,38.0]
[1739560044138,9.62244037,2760.1,2760.0,35.0]
[1739560044452,10.44464037,2760.1,2760.0,35.0]
[1739560045245,10.44464037,2760.1,2760.0,38.0]
[1739560049822,10.34544037,2760.1,2760.0,38.0]
[1739560050523,5.44939037,2760.1,2760.0,38.0]
[1739560050725,9.07244037,2760.1,2760.0,38.0]
[1739560051845,5.99939037,2760.1,2760.0,38.0]
[1739560052560,9.62244037,2760.1,2760.0,38.0]
[1739560053356,5.44939037,2760.1,2760.0,41.62476439]
[1739560053565,5.44939037,2760.1,2760.0,46.04674439]
[1739560053766,5.34,2760.1,2760.0,46.04674439]
[1739560054534,5.34,2760.1,2760.0,42.42356439]
[1739560054739,5.34,2760.1,2760.0,38.0]
[1739560054940,8.96305,2760.1,2760.0,38.0]
[1739560055263,9.02082879,2760.1,2760.0,38.0]
[1739560055629,5.39777879,2760.1,2760.0,38.0]
[1739560056344,5.39777879,2760.1,2760.0,41.62318]
[1739560056551,5.39777879,2760.1,2760.0,46.05864439]
[1739560056831,5.34,2760.1,2760.0,46.05864439]
[1739560057966,5.39775219,2760.1,2760.0,42.43546439]
[1739560058136,5.34,2760.1,2760.0,42.43546439]
[1739560058331,5.34,2760.1,2760.0,46.05864439]
[1739560058565,5.39775219,2760.1,2760.0,46.05864439]
[1739560058749,5.34,2760.1,2760.0,46.05864439]
[1739560059337,5.34,2760.1,2760.0,11.05864439]
[1739560059547,5.34,2760.1,2760.0,7.43388]
[1739560059764,5.39775219,2760.1,2760.0,7.43388]
[1739560060337,5.39775219,2760.1,2760.0,42.43388]
[1739560060738,5.34,2760.1,2760.0,42.43388]
[1739560061965,0.55,2761.1,2760.9,3.0]
[1739560062166,5.34,2761.0,2760.7,0.8107]
[1739560062476,5.34,2761.0,2760.9,6.622]
[1739560062646,5.34,2761.0,2760.9,8.027482]
[1739560063037,5.34,2761.0,2760.9,43.027482]
[1739560065070,5.39829813,2761.0,2760.9,43.027482]
[1739560065276,5.34,2761.0,2760.9,43.027482]
[1739560067069,4.4013102,2761.0,2760.9,43.027482]
[1739560067276,4.45960833,2761.0,2760.9,43.027482]
[1739560069153,4.4013102,2761.0,2760.9,43.027482]
[1739560069352,4.45960833,2761.0,2760.9,43.027482]
[1739560070876,4.4013102,2761.0,2760.9,43.027482]
[1739560072168,4.45960833,2761.0,2760.9,43.027482]
[1739560072484,4.4013102,2761.0,2760.9,43.027482]
[1739560073381,4.4013102,2761.0,2760.9,41.622]
[1739560073560,4.45960833,2761.0,2760.9,41.622]
[1739560074550,4.4013102,2761.0,2760.9,41.622]
[1739560074754,4.45960833,2761.0,2760.9,41.622]
[1739560075265,4.4013102,2761.6,2761.3,3.0]
[1739560075472,0.05858676,2761.5,2761.3,3.0]
[1739560075666,0.05858676,2761.5,2761.3,3.62146]
[1739560075881,0.05858676,2761.5,2761.4,35.0]
[1739560078773,3.67980676,2761.5,2761.4,35.0]
[1739560078946,4.51140676,2761.5,2761.4,35.0]
[1739560079152,0.05858676,2761.5,2761.4,35.0]
[1739560079606,4.45989696,2761.5,2761.4,35.0]
[1739560081026,8.08111696,2761.5,2761.4,35.0]
[1739560081517,4.45989696,2761.5,2761.4,35.0]
[1739560082805,9.46271696,2761.5,2761.4,35.0]
[1739560084421,0.8316,2760.5,2760.1,3.62304]
[1739560084572,4.4013102,2760.4,2760.3,3.0]
[1739560084776,4.45947467,2760.4,2760.1,3.62305]
[1739560085017,4.45947467,2760.4,2760.0,3.0]
[1739560085307,8.63213467,2760.4,2760.3,35.0]
[1739560085509,9.46373467,2760.4,2760.3,35.0]
[1739560085728,12.50533414,2760.4,2760.3,35.0]
[1739560086114,3.62397,2759.5,2758.9,4.38714]
[1739560086318,0.8316,2759.4,2758.9,3.62456]
[1739560086517,4.4013102,2759.3,2759.0,3.0]
[1739560086721,4.4013102,2759.3,2759.2,35.0]
[1739560087101,4.45818512,2759.3,2759.2,35.0]
[1739560087511,4.4013102,2759.3,2759.2,35.0]
[1739560087709,4.4013102,2759.3,2759.2,38.0]
[1739560088110,4.45795306,2759.3,2759.2,38.0]
[1739560088311,4.45795306,2759.3,2759.2,41.62423]
[1739560088526,4.4013102,2759.3,2759.2,41.62423]
[1739560088835,4.45793784,2759.3,2759.2,41.62423]
[1739560089206,4.45793784,2759.3,2759.2,45.80097238]
[1739560089406,4.4013102,2760.1,2759.9,3.62322]
[1739560089612,4.4013102,2760.1,2760.0,3.0]
[1739560089903,4.4013102,2760.1,2760.0,6.62318]
[1739560090219,4.4013102,2760.1,2760.0,41.62318]
[1739560090396,4.4013102,2760.1,2760.0,46.03764439]
[1739560091244,4.4013102,2760.6,2760.5,6.62253]
[1739560091938,4.45332706,2760.6,2760.5,41.62253]
[1739560092131,4.45332706,2760.6,2760.5,38.0]
[1739560092748,8.0237102,2760.6,2760.5,38.0]
[1739560092945,4.4013102,2760.6,2760.5,38.0]
[1739560095418,4.4536579,2760.6,2760.5,38.0]
[1739560095832,8.6260579,2760.6,2760.5,38.0]
[1739560096113,9.4518579,2760.6,2760.5,38.0]
[1739560097044,4.4536579,2760.6,2760.5,38.0]
[1739560099842,8.0760579,2760.6,2760.5,38.0]
[1739560101964,9.4522579,2760.6,2760.5,38.0]
[1739560102167,3.62315,2760.1,2759.5,4.38547]
[1739560102367,4.4013102,2760.0,2759.6,3.62369]
[1739560102566,4.45319723,2760.0,2759.9,35.0]
[1739560102805,4.45319723,2760.0,2759.9,38.0]
[1739560103311,4.45312878,2760.0,2759.9,38.0]
[1739560103673,4.45312878,2760.0,2759.9,41.62331]
[1739560103876,4.4013102,2760.0,2759.9,45.24807439]
[1739560105260,4.4013102,2760.0,2759.9,46.04417439]
[1739560107230,4.4013102,2760.5,2760.4,3.62266]
[1739560107439,4.4013102,2760.5,2760.4,6.62266]
[1739560107637,4.45086158,2760.5,2760.4,6.62266]
[1739560107789,4.4013102,2760.5,2760.4,3.0]
[1739560107986,4.45088059,2760.5,2760.4,3.0]
[1739560108236,4.45088059,2760.5,2760.4,6.62266]
[1739560108538,4.4013102,2760.5,2760.4,7.647218]
[1739560108880,4.45088059,2760.5,2760.4,7.647218]
[1739560109740,4.4013102,2760.5,2760.4,7.647218]
[1739560109959,4.4013102,2760.5,2760.4,4.024558]
[1739560110289,4.44971131,2760.5,2760.4,4.024558]
[1739560110889,4.44971131,2760.5,2760.4,7.647218]
[1739560111089,4.4013102,2760.5,2760.4,8.443318]
[1739560112710,4.44987858,2760.5,2760.4,8.443318]
[1739560112924,4.44987858,2760.5,2760.4,43.443318]
[1739560113332,4.4013102,2760.5,2760.4,38.0]
[1739560113518,4.4013102,2760.5,2760.4,35.0]
[1739560113720,4.4013102,2760.5,2760.4,38.0]
[1739560113932,4.44985941,2760.5,2760.4,38.0]
[1739560114305,4.44985941,2760.5,2760.4,41.62266]
[1739560114701,4.4013102,2760.5,2760.4,38.0]
[1739560115440,4.44980999,2760.5,2760.4,38.0]
[1739560116397,4.44980999,2760.5,2760.4,45.06174685]
[1739560116635,4.44980999,2760.5,2760.4,45.85864685]
[1739560116943,4.4013102,2760.5,2760.4,45.85864685]
[1739560117244,4.4013102,2761.1,2761.0,3.62187]
[1739560117438,4.4013102,2761.1,2761.0,6.62187]
[1739560117593,4.4013102,2761.1,2761.0,3.0]
[1739560118549,4.44907225,2761.1,2761.0,3.0]
[1739560119500,4.44907225,2761.1,2761.0,6.62187]
[1739560119702,4.4013102,2761.1,2761.0,3.0]
[1739560120014,4.44907225,2761.1,2761.0,6.62187]
[1739560120319,4.4013102,2761.1,2761.0,7.646257]
[1739560120519,4.4013102,2761.1,2761.0,3.0]
[1739560121114,4.44907225,2761.1,2761.0,3.0]
[1739560122024,8.07081225,2761.1,2761.0,3.0]
[1739560122627,4.44907225,2761.1,2761.0,3.0]
[1739560123138,9.38141225,2761.1,2761.0,3.0]
[1739560123305,4.17194,2761.0,2760.4,35.0]
[1739560123500,4.44933313,2760.9,2760.5,3.0]
[1739560123729,4.4013102,2760.9,2760.7,3.59229803]
[1739560124351,0.04792718,2760.8,2760.7,3.59229803]
[1739560124517,0.04792718,2760.8,2760.7,41.59229803]
[1739560124901,4.4013102,2760.9,2760.8,3.0]
[1739560125137,4.44920769,2760.9,2760.8,3.0]
[1739560125324,4.44920769,2760.9,2760.7,35.0]
[1739560127607,8.0234402,2760.8,2760.7,35.0]
[1739560127808,5.1619102,2760.8,2760.7,35.0]
[1739560128134,4.44912334,2760.8,2760.7,35.0]
[1739560128336,4.44912334,2760.8,2760.7,41.62226]
[1739560129379,4.4013102,2761.0,2760.8,3.0]
[1739560129803,0.04779105,2760.9,2760.8,6.62213]
[1739560130005,4.4013102,2761.0,2760.9,3.622]
[1739560130206,4.4013102,2761.0,2760.9,6.622]
[1739560130876,4.44860947,2761.0,2760.9,6.622]
[1739560131369,4.44860947,2761.0,2760.9,3.0]
[1739560131569,4.44860947,2761.0,2760.9,6.622]
[1739560133660,4.44860947,2761.0,2760.9,3.0]
[1739560134062,4.44860947,2761.0,2760.9,6.622]
[1739560135599,4.44860947,2761.0,2760.9,3.0]
[1739560135799,4.44860947,2761.0,2760.9,6.622]
[1739560136097,4.4013102,2761.0,2760.9,3.0]
[1739560136264,4.44839691,2761.0,2760.9,3.0]
[1739560137162,0.7691,2760.9,2760.7,35.0]
[1739560137404,0.7691,2760.9,2760.8,3.0]
[1739560137878,0.81620119,2760.9,2760.8,3.0]
[1739560139075,5.21751139,2760.9,2760.8,3.0]
[1739560140566,4.44841139,2760.9,2760.8,6.62213]
[1739560140785,4.44841139,2760.9,2760.8,10.24689439]
[1739560141199,4.4013102,2760.9,2760.8,10.24689439]
[1739560141502,4.4013102,2760.9,2760.8,6.62213]
[1739560142093,4.44832397,2760.9,2760.8,6.62213]
[1739560142803,4.44832397,2760.9,2760.8,3.0]
[1739560142990,8.83942397,2760.9,2760.7,35.0]
[1739560143301,0.04694463,2760.8,2760.7,35.0]
[1739560143676,3.66907463,2760.8,2760.7,35.0]
[1739560144107,8.07038483,2760.8,2760.7,35.0]
[1739560144667,9.38948483,2760.8,2760.7,35.0]
[1739560147207,3.62315,2760.1,2759.6,3.62362]
[1739560147406,5.2172102,2760.0,2759.7,3.0]
[1739560147587,5.26333864,2760.0,2759.9,38.0]
[1739560147997,5.26333864,2760.0,2759.9,35.0]
[1739560148907,8.88651864,2760.0,2759.9,35.0]
[1739560149514,4.48520844,2760.0,2759.9,35.0]
[1739560150687,0.86202844,2760.0,2759.9,35.0]
[1739560151015,0.04612844,2760.0,2759.9,38.0]
[1739560151313,0.8159,2760.3,2759.9,38.0]
[1739560151314,4.43878,2760.3,2759.9,38.0]
[1739560151489,0.04579186,2760.2,2759.9,3.0]
[1739560151684,0.8159,2760.3,2759.9,3.0]
[1739560151892,4.43835,2760.6,2760.2,35.0]
[1739560152096,4.43803,2760.8,2760.2,38.62283]
[1739560152279,0.8159,2760.8,2760.2,3.0]
[1739560152479,3.62256,2760.5,2760.0,3.7616]
[1739560152674,3.62256,2760.5,2759.8,3.62336]
[1739560152877,3.6228,2760.3,2759.8,3.62336]
[1739560153074,0.86032137,2760.2,2759.8,3.62336]
[1739560153315,3.62305,2760.1,2759.9,35.0]
[1739560153511,3.66748582,2760.0,2759.9,35.0]
[1739560154379,4.21748582,2760.0,2759.9,35.0]
[1739560154578,5.03338582,2760.0,2759.9,35.0]
[1739560155895,9.43469602,2760.0,2759.9,35.0]
[1739560156829,3.62446,2759.1,2758.6,0.7616]
[1739560157128,3.62497,2758.7,2758.3,0.7616]
[1739560157327,4.44452518,2758.6,2758.0,4.38737]
[1739560157834,3.62524,2758.5,2758.4,35.0]
[1739560158204,3.66820306,2758.5,2758.4,35.0]
[1739560158833,0.04296306,2758.5,2758.4,35.0]
[1739560160493,0.04296306,2758.5,2758.4,38.62529]
[1739560160829,0.04296306,2758.5,2758.4,43.94896192]
[1739560161129,4.4013102,2758.6,2758.4,43.94896192]
[1739560161336,4.4013102,2758.6,2758.4,8.94896192]
[1739560161507,4.4013102,2758.6,2758.5,3.62515]
[1739560161712,4.4013102,2758.6,2758.5,38.62515]
[1739560161713,4.44186155,2758.6,2758.5,38.62515]
[1739560161909,4.4013102,2758.6,2758.5,38.62515]
[1739560162216,4.4013102,2758.6,2758.5,45.21460886]
[1739560162433,4.4013102,2758.6,2758.5,45.97530886]
[1739560162654,4.4013102,2759.2,2759.1,6.62437]
[1739560162799,4.4013102,2759.2,2759.1,7.38507]
[1739560163251,4.4013102,2759.2,2759.1,42.38507]
[1739560163754,4.4013102,2759.6,2759.3,3.62401]
[1739560164055,4.4013102,2759.6,2759.3,3.62406]
[1739560164717,4.4013102,2759.6,2759.2,6.62415]
[1739560164718,4.4013102,2759.6,2759.2,3.0]
[1739560164897,8.0250902,2759.6,2759.2,3.0]
[1739560165100,3.62397,2759.4,2759.2,3.0]
[1739560165335,0.04082019,2759.3,2759.1,35.0]
[1739560165706,0.766,2759.5,2759.1,35.0]
[1739560166068,0.040878,2759.4,2759.1,35.0]
[1739560166413,0.040878,2759.4,2759.2,3.62423]
[1739560166609,0.040878,2759.4,2759.1,35.0]
[1739560166814,0.040878,2759.4,2759.1,42.24853]
[1739560167043,4.4013102,2759.6,2759.1,38.62424]
[1739560167255,0.04082019,2759.3,2759.1,38.62424]
[1739560167412,4.4013102,2759.6,2759.3,3.62402]
[1739560168151,0.0409358,2759.5,2759.1,39.38501]
[1739560168326,4.4013102,2759.6,2759.1,39.38497]
[1739560168510,0.0409358,2759.5,2759.2,3.62422]
[1739560168711,4.4013102,2759.4,2759.1,39.38501]
[1739560169333,0.04113999,2759.3,2759.1,39.38501]
[1739560169768,0.04113999,2759.3,2759.2,3.62423]
[1739560170548,4.4013102,2759.4,2759.3,3.6241]
[1739560171049,4.4428773,2759.4,2759.3,3.6241]
[1739560171352,4.4013102,2759.4,2759.2,7.2484]
[1739560171647,4.4013102,2759.4,2759.3,3.6241]
[1739560172454,4.44291916,2759.4,2759.3,3.6241]
[1739560172954,4.4013102,2759.4,2759.3,3.6241]
[1739560173341,4.44291916,2759.4,2759.3,3.6241]
[1739560174582,4.44291916,2759.4,2759.1,35.0]
[1739560174881,4.44291916,2759.4,2759.3,3.6241]
[1739560175196,4.4013102,2759.4,2759.3,3.6241]
[1739560175659,4.44291916,2759.4,2759.3,3.6241]
[1739560176081,4.4013102,2759.4,2759.3,3.6241]
[1739560176794,4.44291916,2759.4,2759.2,3.62423]
[1739560176959,4.44291916,2759.4,2759.2,7.24839]
[1739560177160,4.4013102,2759.4,2759.2,3.62416]
[1739560177371,0.04135472,2759.3,2759.2,3.62415]
[1739560178304,4.4013102,2759.4,2759.2,7.24891439]
[1739560178472,4.4013102,2759.4,2759.3,3.6241]
[1739560179115,4.44272273,2759.4,2759.3,3.6241]
[1739560180205,4.94272273,2759.4,2759.3,3.6241]
[1739560182580,4.9013102,2759.4,2759.3,3.6241]
[1739560183474,4.94254272,2759.4,2759.3,3.6241]
[1739560183674,4.9013102,2759.4,2759.3,3.6241]
[1739560184075,4.9013102,2759.4,2759.3,7.24886439]
[1739560184276,4.9013102,2759.4,2759.3,8.01556439]
[1739560184793,4.94148035,2759.4,2759.3,8.01556439]
[1739560185210,4.9013102,2759.4,2759.3,8.01556439]
[1739560185408,0.5,2759.4,2759.3,11.01556439]
[1739560185610,0.5,2759.4,2759.3,11.56556439]
[1739560185811,4.4013102,2759.9,2759.8,10.42960886]
[1739560186106,4.4013102,2759.9,2759.8,11.83492575]
[1739560186311,4.43903723,2759.9,2759.8,46.83492575]
[1739560186673,4.4013102,2759.9,2759.8,46.83492575]
[1739560189582,4.4013102,2759.9,2759.8,38.0]
[1739560189925,4.4013102,2759.9,2759.8,41.62345]
[1739560190281,4.4013102,2759.9,2759.8,44.66290886]
[1739560191040,4.4013102,2759.9,2759.8,45.42960886]
[1739560191196,4.4013102,2759.9,2759.8,45.97960886]
[1739560191399,4.4013102,2759.9,2759.8,49.60437325]
[1739560195518,8.0237502,2760.6,2760.0,3.62306]
[1739560195715,8.0237502,2760.6,2760.1,3.62301]
[1739560195922,0.03757375,2760.5,2760.1,3.62301]
[1739560196133,0.03757375,2760.5,2760.2,3.62292]
[1739560196348,4.4013102,2760.6,2760.2,3.62292]
[1739560196653,0.03757375,2760.5,2760.2,3.62284]
[1739560196947,0.03757375,2760.5,2760.3,35.0]
[1739560197095,3.66010375,2760.5,2760.3,35.0]
[1739560197933,0.03757375,2760.5,2760.3,35.0]
[1739560198098,0.03757375,2760.5,2760.4,3.62266]
[1739560198300,4.43888395,2760.5,2760.4,6.62266]
[1739560198499,4.4013102,2760.5,2760.4,6.62266]
[1739560198735,4.43892577,2760.5,2760.4,6.62266]
[1739560198937,4.43892577,2760.5,2760.4,10.24742439]
[1739560200416,4.43892577,2760.5,2760.4,13.28688325]
[1739560200617,4.43892577,2760.5,2760.4,10.24742439]
[1739560200939,4.43892577,2760.5,2760.4,6.62266]
[1739560201115,4.43892577,2760.5,2760.4,41.62266]
[1739560201314,4.4013102,2760.5,2760.4,41.62266]
[1739560202341,4.43892577,2760.5,2760.4,41.62266]
[1739560202840,4.43892577,2760.5,2760.4,44.66211886]
[1739560203030,4.43892577,2760.5,2760.4,48.28688325]
[1739560203539,4.4013102,2760.5,2760.4,45.24742439]
[1739560205068,4.4013102,2760.5,2760.4,35.0]
[1739560205300,4.4013102,2760.5,2758.7,3.62482]
[1739560205301,3.62409,2759.4,2758.7,3.62482]
[1739560205593,3.62431,2759.2,2758.7,3.62489]
[1739560205740,3.62431,2759.2,2758.8,35.0]
[1739560206088,0.0373201,2759.1,2758.8,35.0]
[1739560206253,0.0373201,2759.1,2758.8,38.6247]
[1739560206451,0.0373201,2759.1,2758.8,35.0]
[1739560206789,3.62423,2759.2,2758.8,35.0]
[1739560207283,0.03692451,2759.1,2758.8,35.0]
[1739560207695,3.62452,2759.0,2758.8,35.0]
[1739560207997,8.81854907,2758.9,2758.8,35.0]
[1739560208453,5.19391907,2758.9,2758.8,35.0]
[1739560209455,8.81854907,2758.9,2758.8,35.0]
[1739560210207,5.19391907,2758.9,2758.8,35.0]
[1739560210539,8.81854907,2758.9,2758.8,35.0]
[1739560210776,5.19391907,2758.9,2758.8,35.0]
[1739560212005,8.81854907,2758.9,2758.8,35.0]
[1739560212206,5.19391907,2758.9,2758.8,35.0]
[1739560213010,4.43811907,2758.9,2758.8,35.0]
[1739560214270,8.81854907,2758.9,2758.8,35.0]
[1739560216016,11.85800793,2758.9,2758.8,35.0]
[1739560216934,11.28491176,2758.9,2757.8,3.0]
[1739560217236,3.62539,2758.4,2757.8,6.62604]
[1739560217448,7.25076,2758.4,2758.2,35.0]
[1739560217735,1.0328,2758.7,2758.2,35.0]
[1739560217736,0.03530479,2758.3,2758.2,35.0]
[1739560217946,0.03530479,2758.3,2758.2,38.62555]
[1739560218215,0.03770473,2758.3,2758.2,41.51921858]
[1739560218388,4.4013102,2758.6,2758.4,3.62522]
[1739560218790,4.4013102,2758.6,2758.3,3.62534]
[1739560218994,4.4013102,2758.6,2758.5,41.62515]
[1739560219194,4.4013102,2759.2,2759.1,3.62437]
[1739560219423,1.47813437,2759.8,2759.0,3.0]
[1739560219584,1.47813437,2759.8,2759.4,3.62385]
[1739560219895,0.03725737,2759.7,2759.4,3.62395]
[1739560220089,0.03725737,2759.7,2759.5,35.0]
[1739560220290,5.737,2760.1,2759.5,45.28805325]
[1739560220516,5.737,2760.1,2759.7,3.62357]
[1739560220905,5.737,2760.1,2759.5,10.28805325]
[1739560220906,5.737,2760.1,2759.5,10.28700886]
[1739560221111,5.737,2760.1,2759.8,35.0]
[1739560223211,5.737,2760.1,2760.0,3.62318]
[1739560223414,5.737,2760.1,2759.8,38.62334]
[1739560223717,5.737,2760.1,2759.9,3.62324]
[1739560224347,5.737,2760.1,2759.8,38.62336]
[1739560224627,5.737,2760.1,2759.9,3.62323]
[1739560224799,5.737,2760.1,2759.8,35.0]
[1739560225188,5.737,2760.1,2759.9,3.62329]
[1739560225622,5.737,2760.1,2759.8,35.0]
[1739560225787,5.737,2760.1,2759.8,38.62344]
[1739560225992,5.737,2760.1,2759.9,3.62322]
[1739560226519,4.4013102,2760.2,2760.1,3.62305]
[1739560229730,4.4013102,2760.2,2760.1,38.62305]
[1739560232535,4.4013102,2760.2,2760.1,41.62305]
[1739560234707,4.4013102,2760.2,2760.1,38.62305]
[1739560235404,4.4013102,2760.2,2760.1,41.62305]
[1739560235605,4.4013102,2760.2,2760.1,45.24781439]
[1739560241213,4.4013102,2760.2,2760.1,41.62305]
[1739560246754,5.1812102,2760.2,2760.1,41.62305]
[1739560247123,4.47206789,2760.2,2760.1,41.62305]
[1739560247318,4.4013102,2760.2,2760.1,41.62305]
[1739560247724,4.47206789,2760.2,2760.1,41.62305]
[1739560248127,4.4013102,2760.2,2760.1,47.1707363]
[1739560249227,4.4013102,2760.2,2760.1,44.66277389]
[1739560249686,4.4013102,2760.2,2760.1,41.62305]
[1739560249862,4.47169116,2760.2,2760.1,41.62305]
[1739560250726,4.4013102,2760.2,2760.1,41.62305]
[1739560251555,4.4013102,2760.2,2760.1,38.0]
[1739560252260,4.47169116,2760.2,2760.1,38.0]
[1739560252655,5.22479116,2760.2,2760.1,38.0]
[1739560252840,5.1544102,2760.2,2760.1,41.62305]
[1739560253047,4.47169116,2760.2,2760.1,41.62305]
[1739560254145,4.4013102,2760.2,2760.1,41.62305]
[1739560254349,4.47169116,2760.2,2760.1,41.62305]
[1739560254737,4.4013102,2760.2,2760.1,41.62305]
[1739560254937,4.47169116,2760.2,2760.1,41.62305]
[1739560255550,4.4013102,2760.2,2760.1,41.62305]
[1739560258148,4.47166452,2760.2,2760.1,41.62305]
[1739560258770,4.4013102,2760.2,2760.1,41.62305]
[1739560259276,4.47166452,2760.2,2760.1,41.62305]
[1739560260053,8.7773302,2760.2,2760.1,35.0]
[1739560260939,8.84853327,2760.2,2760.1,35.0]
[1739560268785,0.8072,2759.4,2759.0,6.62444]
[1739560268950,4.4013102,2759.3,2759.0,6.62444]
[1739560269152,4.47077514,2759.3,2759.2,35.0]
[1739560269681,4.4013102,2759.3,2759.2,35.0]
[1739560270653,4.47071805,2759.3,2759.2,35.0]
[1739560276296,4.47071805,2759.3,2759.2,38.62423]
[1739560276466,4.4013102,2759.3,2759.2,35.0]
[1739560276791,4.47071805,2759.3,2759.2,35.0]
[1739560280090,0.06940785,2759.3,2759.2,48.27268687]
[1739560280260,3.62253,2760.5,2759.9,3.62328]
[1739560280463,0.8293,2760.7,2760.1,3.62303]
[1739560280670,0.8293,2760.7,2760.2,3.6228]
[1739560280870,0.05768287,2760.6,2760.1,3.62303]
[1739560281070,0.05768287,2760.6,2760.3,35.0]
[1739560281390,3.68011287,2760.6,2760.3,35.0]
[1739560281596,7.30259287,2760.6,2760.3,35.0]
[1739560281771,3.68011287,2760.6,2760.3,35.0]
[1739560281975,7.30263287,2760.6,2760.3,35.0]
[1739560282160,3.68011287,2760.6,2760.3,35.0]
[1739560282361,0.05768287,2760.6,2760.3,35.0]
[1739560282583,4.41436,2760.4,2760.3,35.0]
[1739560283287,0.7917,2760.4,2760.3,35.0]
[1739560283470,4.41436,2760.4,2760.3,35.0]
[1739560284367,0.7917,2760.4,2760.3,35.0]
[1739560284574,0.84863985,2760.4,2760.3,35.0]
[1739560284980,4.47129985,2760.4,2760.3,35.0]
[1739560287262,0.84863985,2760.4,2760.3,35.0]
[1739560287467,0.05693985,2760.4,2760.3,35.0]
[1739560287697,1.03411849,2760.6,2760.3,35.0]
[1739560287878,0.0572526,2760.4,2760.3,35.0]
[1739560288201,1.03411849,2760.6,2760.3,35.0]
[1739560288501,0.05768287,2760.6,2760.3,38.62276]
[1739560288681,0.05768287,2760.6,2760.3,41.99456602]
[1739560288879,0.05768287,2760.6,2760.3,38.62276]
[1739560289385,0.05768287,2760.6,2760.3,35.0]
[1739560289874,0.7917,2760.5,2760.3,35.0]
[1739560290302,0.05768287,2760.6,2760.3,35.0]
[1739560290489,3.71197172,2760.5,2760.3,35.0]
[1739560291197,3.71197172,2760.5,2760.3,38.62272]
[1739560291419,3.71197172,2760.5,2760.3,35.0]
[1739560291768,0.0569997,2760.4,2760.3,35.0]
[1739560292364,3.6796597,2760.4,2760.3,35.0]
[1739560292570,3.6796597,2760.4,2759.3,6.66380389]
[1739560292571,0.7917,2760.3,2759.3,6.66380389]
[1739560292794,0.7917,2759.8,2759.2,0.782]
[1739560293006,3.62369,2759.7,2759.2,3.0]
[1739560293319,4.41521,2759.8,2759.2,3.0]
[1739560293320,3.71197172,2759.6,2759.3,38.62408]
[1739560294631,3.71197172,2759.6,2759.5,3.62384]
[1739560295291,3.76749513,2759.6,2759.5,38.62384]
[1739560295476,3.71197172,2759.6,2759.5,38.62384]
[1739560296732,1.71197172,2759.6,2759.5,38.62384]
[1739560299491,1.71197172,2759.6,2759.5,41.62384]
[1739560299693,1.71197172,2759.6,2759.5,45.24860439]
[1739560301428,1.71197172,2759.6,2759.5,45.79860439]
[1739560302491,0.7689,2760.3,2759.8,3.62338]
[1739560302492,1.71197172,2760.2,2759.8,3.62338]
[1739560302997,1.71197172,2760.2,2759.9,3.62328]
[1739560303195,1.71197172,2760.2,2760.0,3.62314]
[1739560303398,1.71197172,2760.2,2760.1,3.62305]
[1739560303630,1.71197172,2760.2,2760.0,3.62314]
[1739560303980,1.71197172,2760.2,2760.1,3.62305]
[1739560305139,1.71197172,2760.2,2760.0,3.62307]
[1739560305454,1.71197172,2760.2,2760.0,3.1944198]
[1739560306039,1.71197172,2760.2,2760.1,3.62305]
[1739560306245,1.71197172,2760.2,2760.0,3.1944198]
[1739560307350,1.71197172,2760.2,2760.0,6.8175098]
[1739560307904,1.71197172,2760.2,2760.1,3.62305]
[1739560308551,1.71197172,2760.2,2760.0,3.1944198]
[1739560309717,1.71197172,2760.2,2760.1,3.62305]
[1739560311360,1.71197172,2760.2,2760.0,3.62317]
[1739560311650,1.71197172,2760.2,2759.5,41.66448828]
[1739560311851,0.7945,2760.1,2759.5,41.66448828]
[1739560312055,0.7945,2760.1,2759.8,3.62336]
[1739560313033,0.05602335,2760.0,2759.8,3.62336]
[1739560313751,1.71197172,2760.2,2759.8,3.62336]
[1739560313946,1.71197172,2760.2,2759.9,35.0]
[1739560314449,3.62309,2760.1,2759.9,35.0]
[1739560314620,1.71197172,2760.2,2759.9,35.0]
[1739560315337,5.33491172,2760.2,2759.9,35.0]
[1739560318440,0.05607968,2760.1,2759.9,35.0]
[1739560319512,1.71197172,2760.2,2759.9,35.0]
[1739560319712,0.05602335,2760.0,2759.9,35.0]